bitfinex/quotes_ETHUSD_20250813
["timestamp","ask_amount","ask_price","bid_price","bid_amount"]
[1755062981348,0.55,4644.0,4643.9,8.469]
[1755062981572,0.55,4644.0,4643.9,8.9606]
[1755062982260,0.55,4644.0,4643.9,8.469]
[1755062984361,0.658,4644.0,4643.9,8.469]
[1755062990257,1.1204,4644.0,4643.9,8.469]
[1755062991466,0.658,4644.0,4643.9,8.469]
[1755063000376,0.658,4644.0,4643.9,8.467]
[1755063000576,1.5709,4644.0,4643.9,8.467]
[1755063000888,1.1086,4644.0,4643.9,8.467]
[1755063001093,0.658,4644.0,4643.9,8.467]
[1755063004509,0.108,4644.0,4643.9,8.467]
[1755063004717,0.658,4644.0,4643.9,8.467]
[1755063004889,0.658,4644.0,4643.9,8.9536]
[1755063005209,0.658,4644.0,4643.9,9.3228]
[1755063007394,0.658,4644.0,4643.9,8.466]
[1755063007998,0.658,4644.0,4643.9,5.162]
[1755063008317,0.658,4644.0,4643.9,8.466]
[1755063011521,0.658,4644.0,4643.9,8.465]
[1755063012399,0.658,4644.0,4643.9,5.162]
[1755063012600,0.658,4644.0,4643.9,8.465]
[1755063013731,1.5709,4644.0,4643.9,8.465]
[1755063014031,3.32539293,4644.0,4643.9,8.465]
[1755063015126,3.32539293,4644.0,4643.9,5.162]
[1755063015330,3.32539293,4644.0,4643.9,8.465]
[1755063016125,3.32739293,4644.0,4643.9,8.465]
[1755063016437,3.32739293,4644.0,4643.9,5.162]
[1755063016739,3.32739293,4644.0,4643.8,0.001]
[1755063016902,3.39304223,4643.9,4643.8,0.001]
[1755063017097,3.39304223,4643.9,4643.8,5.163]
[1755063017302,3.39304223,4643.9,4643.8,3.303]
[1755063018610,3.39304223,4643.9,4643.6,0.001]
[1755063018810,16.52402934,4643.7,4643.6,0.001]
[1755063019013,18.4717365,4643.7,4643.6,0.001]
[1755063019226,19.3846365,4643.7,4643.6,0.001]
[1755063019434,19.4926365,4643.7,4643.6,0.001]
[1755063019930,19.4926365,4643.7,4643.6,3.304]
[1755063020230,0.55,4643.6,4643.5,5.162]
[1755063020528,0.55,4643.6,4643.4,0.001]
[1755063020529,3.46716365,4643.6,4643.4,0.001]
[1755063020830,3.00486365,4643.6,4643.4,0.001]
[1755063021026,1.4629,4643.5,4643.4,0.001]
[1755063021931,1.4629,4643.5,4643.4,3.304]
[1755063024916,1.62213783,4643.5,4643.4,3.304]
[1755063025342,0.55,4643.4,4643.2,5.162]
[1755063025510,0.108,4643.3,4643.2,5.162]
[1755063025815,1.92965455,4643.5,4643.2,8.465]
[1755063026019,0.55,4643.3,4643.2,8.465]
[1755063026403,0.55,4643.6,4643.2,8.465]
[1755063026619,0.4506,4643.7,4643.2,8.465]
[1755063026820,0.55,4643.6,4643.2,8.465]
[1755063027244,0.55,4643.8,4643.2,8.465]
[1755063027458,0.55,4643.6,4643.2,8.465]
[1755063027658,0.002,4644.0,4643.2,8.465]
[1755063027861,0.002,4644.0,4643.3,0.8558]
[1755063028163,0.002,4644.0,4643.4,3.302]
[1755063028658,0.4526,4644.0,4643.5,3.302]
[1755063028874,1.0006,4643.9,4643.6,3.302]
[1755063029053,0.14649,4643.8,4643.6,3.302]
[1755063029246,0.14649,4643.8,4643.2,5.162]
[1755063029633,0.14649,4643.8,4643.3,3.302]
[1755063030067,0.14649,4643.8,4643.2,5.162]
[1755063030234,0.14649,4643.8,4643.3,3.302]
[1755063030637,0.55,4643.6,4643.3,3.302]
[1755063030964,0.4506,4643.9,4643.3,3.302]
[1755063031660,0.61214714,4643.9,4643.3,3.302]
[1755063031841,0.55,4643.8,4643.3,3.302]
[1755063032229,0.9913,4643.8,4643.3,3.302]
[1755063032462,0.55,4643.6,4643.3,3.302]
[1755063033179,16.52402934,4643.5,4643.4,3.302]
[1755063033378,16.52402934,4643.5,4643.2,5.162]
[1755063033379,0.55,4643.4,4643.2,5.162]
[1755063033678,17.44372934,4643.5,4643.2,5.162]
[1755063033679,1.4697,4643.3,4643.2,5.162]
[1755063033842,3.21407293,4643.3,4643.2,8.464]
[1755063034654,2.29437293,4643.3,4643.2,8.464]
[1755063034833,0.55,4643.3,4643.2,8.464]
[1755063035472,0.9913,4643.3,4643.2,8.464]
[1755063035677,1.0993,4643.3,4643.2,8.464]
[1755063035855,1.5777,4643.3,4643.2,8.464]
[1755063036833,0.658,4643.3,4643.2,8.464]
[1755063037074,0.76793,4643.3,4643.2,8.464]
[1755063040977,0.76793,4643.3,4643.2,8.9434]
[1755063041167,0.658,4643.3,4643.2,9.3126]
[1755063041377,0.108,4643.3,4643.2,9.3126]
[1755063041758,0.108,4643.3,4643.2,8.9424]
[1755063041968,0.108,4643.3,4643.2,5.162]
[1755063042279,1.5777,4643.3,4643.2,8.463]
[1755063042479,1.31207,4643.3,4643.2,8.463]
[1755063042678,17.76449934,4643.3,4643.2,8.463]
[1755063043973,17.76449934,4643.3,4643.2,5.162]
[1755063044175,17.76449934,4643.3,4643.2,8.463]
[1755063044771,17.76449934,4643.3,4643.2,5.162]
[1755063044971,17.76449934,4643.3,4643.2,8.463]
[1755063045687,17.76449934,4643.3,4643.2,5.162]
[1755063045884,17.76449934,4643.3,4643.2,8.463]
[1755063049022,17.76449934,4643.3,4643.2,5.162]
[1755063049221,17.76449934,4643.3,4643.2,8.463]
[1755063050417,17.76449934,4643.3,4643.2,5.163]
[1755063050712,17.76449934,4643.3,4643.2,8.463]
[1755063050920,0.87077,4643.3,4643.2,8.463]
[1755063051072,0.658,4643.3,4643.2,8.463]
[1755063051472,1.0993,4643.3,4643.2,8.463]
[1755063051704,1.5777,4643.3,4643.2,5.163]
[1755063051903,1.5777,4643.3,4643.2,8.463]
[1755063052286,1.5777,4643.3,4643.2,5.163]
[1755063052606,3.33287293,4643.3,4643.2,8.463]
[1755063052817,3.33287293,4643.3,4643.2,5.163]
[1755063052997,3.33287293,4643.3,4643.2,8.463]
[1755063053401,3.33287293,4643.3,4643.2,5.163]
[1755063053597,3.33287293,4643.3,4643.2,8.463]
[1755063054206,0.55,4643.2,4643.1,5.163]
[1755063054408,19.37441957,4643.2,4643.1,3.3]
[1755063054694,19.48241957,4643.2,4642.8,0.001]
[1755063054900,0.55,4643.0,4642.8,0.001]
[1755063055312,0.4413,4643.0,4642.8,0.001]
[1755063055591,3.41794196,4643.0,4642.8,0.001]
[1755063055814,3.41794196,4643.0,4642.9,3.301]
[1755063056411,0.55,4642.9,4642.8,0.001]
[1755063056599,1.5777,4642.9,4642.8,0.001]
[1755063056817,1.5777,4642.9,4642.8,3.301]
[1755063057028,3.52769713,4642.9,4642.8,3.301]
[1755063057321,3.52769713,4642.9,4642.7,5.163]
[1755063057497,1.4697,4642.8,4642.7,5.163]
[1755063057691,0.9913,4642.8,4642.7,5.163]
[1755063058097,1.4697,4642.8,4642.7,5.163]
[1755063058325,1.82246971,4642.8,4642.7,5.163]
[1755063058530,1.82246971,4642.8,4642.7,8.463]
[1755063059505,1.34406971,4642.8,4642.7,8.463]
[1755063060035,1.82856971,4642.8,4642.7,8.463]
[1755063060199,0.55,4642.7,4642.6,0.001]
[1755063060401,1.98975668,4642.7,4642.6,3.301]
[1755063060600,1.98975668,4642.7,4642.5,5.164]
[1755063060829,0.4586,4642.6,4642.5,5.164]
[1755063061124,1.4931,4642.6,4642.5,5.164]
[1755063061345,0.55,4642.5,4642.3,0.001]
[1755063061633,0.55,4642.5,4642.0,5.164]
[1755063061634,1.4931,4642.5,4642.0,5.164]
[1755063061928,16.52402934,4642.1,4642.0,5.164]
[1755063062135,0.55,4641.8,4641.3,5.164]
[1755063062305,0.55,4641.8,4636.8,0.56079134]
[1755063062306,0.55,4641.1,4640.8,5.164]
[1755063062500,0.55,4641.1,4640.0,0.3192]
[1755063062693,0.55,4641.6,4640.1,0.4645]
[1755063063198,0.11231416,4642.3,4640.1,0.4645]
[1755063063199,0.658,4640.2,4640.1,0.4645]
[1755063063425,0.55,4642.2,4640.1,0.4645]
[1755063063628,0.108,4640.5,4640.1,0.4645]
[1755063063837,0.55,4642.4,4640.1,0.4645]
[1755063064128,0.55,4640.6,4640.2,3.3]
[1755063064340,0.55,4640.6,4640.3,0.4645]
[1755063064557,0.55,4640.6,4640.3,0.7837]
[1755063064761,0.55,4640.6,4640.4,0.3192]
[1755063065101,0.55,4640.6,4640.4,0.7837]
[1755063065402,0.55,4640.6,4640.5,5.164]
[1755063065627,0.55,4640.6,4640.5,9.2477]
[1755063066939,0.55,4640.6,4639.7,2.685]
[1755063067230,0.55,4640.6,4640.5,5.164]
[1755063067414,1.0086,4640.6,4640.5,8.464]
[1755063067917,1.15791,4640.6,4640.5,5.164]
[1755063068706,0.69931,4640.6,4640.5,5.164]
[1755063069540,1.15791,4640.6,4640.5,8.464]
[1755063070318,1.64241,4640.6,4640.5,5.164]
[1755063070639,1.64241,4640.6,4640.5,8.464]
[1755063071936,0.69931,4640.6,4640.5,8.464]
[1755063072125,1.4931,4640.6,4640.5,5.164]
[1755063072329,1.4931,4640.6,4640.5,8.464]
[1755063072539,1.0086,4640.6,4640.5,8.464]
[1755063072728,1.4931,4640.6,4640.5,8.464]
[1755063073410,1.4931,4640.6,4640.5,8.466]
[1755063073740,0.55,4640.5,4640.4,5.165]
[1755063073915,1.4931,4640.5,4640.4,8.467]
[1755063074238,1.4931,4640.5,4640.4,5.165]
[1755063074639,17.46712934,4640.5,4640.4,5.165]
[1755063074950,19.22877327,4640.5,4640.4,5.165]
[1755063075240,19.22877327,4640.5,4639.0,0.001]
[1755063075437,18.77017327,4640.5,4639.1,5.166]
[1755063075640,0.55,4640.3,4639.1,5.166]
[1755063075838,0.55,4640.1,4639.1,5.166]
[1755063076013,0.55,4639.9,4639.2,3.301]
[1755063077014,0.658,4639.3,4639.2,3.301]
[1755063077547,0.108,4639.3,4639.2,3.7655]
[1755063077725,0.108,4639.3,4639.2,4.0847]
[1755063077925,0.108,4639.3,4639.2,0.7837]
[1755063078243,0.108,4639.3,4639.2,4.0847]
[1755063078448,1.0511,4639.3,4639.0,0.001]
[1755063078617,3.19561293,4639.2,4639.1,3.328]
[1755063079014,0.55,4639.1,4639.0,0.001]
[1755063079214,0.55,4639.1,4636.5,0.5725]
[1755063079215,1.4931,4639.1,4638.4,5.166]
[1755063079545,16.52402934,4638.7,4637.8,5.166]
[1755063079746,0.55,4638.5,4637.8,5.166]
[1755063080047,0.658,4637.9,4637.8,5.166]
[1755063080424,1.1166,4637.9,4637.8,5.166]
[1755063080623,0.658,4637.9,4637.8,9.064]
[1755063081226,0.658,4637.9,4637.8,5.736]
[1755063081429,0.658,4637.9,4637.8,9.5285]
[1755063081661,0.658,4637.9,4637.8,9.8477]
[1755063082327,0.658,4637.9,4637.8,9.064]
[1755063082527,0.658,4637.9,4637.8,9.8477]
[1755063082733,0.658,4637.9,4637.8,9.064]
[1755063082952,0.658,4637.9,4637.8,0.57]
[1755063083156,1.6011,4637.9,4637.8,5.167]
[1755063083356,1.6011,4637.9,4635.4,0.5725]
[1755063083357,0.55,4637.8,4635.4,0.5725]
[1755063083573,0.55,4637.6,4635.5,0.4645]
[1755063083856,0.658,4635.6,4635.5,5.167]
[1755063084450,0.55,4635.5,4634.9,0.4645]
[1755063084753,0.55,4636.2,4635.1,5.168]
[1755063085127,0.55,4636.2,4635.2,3.334]
[1755063085553,0.4586,4636.1,4635.1,5.168]
[1755063085762,0.55,4636.0,4635.1,5.168]
[1755063086055,0.55,4635.1,4634.9,0.4645]
[1755063086256,0.108,4635.2,4635.0,1.3192]
[1755063086466,0.108,4635.2,4635.1,0.4645]
[1755063086630,0.55,4635.1,4635.0,6.168]
[1755063086950,0.55,4635.1,4635.0,6.9517]
[1755063086951,0.658,4635.1,4635.0,6.9517]
[1755063087152,0.658,4635.1,4635.0,10.2857]
[1755063087357,0.108,4635.1,4635.0,10.2857]
[1755063088255,0.108,4635.1,4635.0,10.2867]
[1755063088466,0.108,4635.1,4635.0,9.503]
[1755063088947,0.108,4635.1,4635.0,1.0]
[1755063089130,0.108,4635.1,4635.0,9.507]
[1755063089321,0.5551,4635.1,4635.0,9.512]
[1755063089525,0.108,4635.1,4635.0,9.512]
[1755063090272,0.658,4635.1,4635.0,9.512]
[1755063090569,0.108,4635.1,4635.0,10.2874]
[1755063090739,0.108,4635.1,4635.0,1.0]
[1755063090939,0.55,4635.3,4635.0,9.514]
[1755063091145,0.55,4635.7,4635.0,9.514]
[1755063092245,0.55,4636.0,4635.0,9.514]
[1755063092571,0.55,4635.8,4635.0,6.169]
[1755063092772,0.55,4635.8,4635.1,3.355]
[1755063093346,0.55,4635.8,4635.2,3.355]
[1755063094263,0.55,4635.6,4635.3,3.355]
[1755063094433,0.55,4635.4,4635.3,3.355]
[1755063094636,1.4881,4635.4,4635.3,3.354]
[1755063094879,1.4881,4635.4,4635.0,6.169]
[1755063095188,0.55,4635.2,4635.0,6.117]
[1755063095536,0.20381,4635.5,4635.0,6.117]
[1755063095537,0.9971,4635.1,4635.0,6.117]
[1755063095750,0.70471,4635.1,4635.0,6.117]
[1755063096068,0.55,4635.1,4635.0,6.117]
[1755063096274,0.55,4635.1,4635.0,9.471]
[1755063096548,0.9971,4635.1,4635.0,9.471]
[1755063096684,1.4881,4635.1,4635.0,9.475]
[1755063097266,1.4881,4635.1,4635.0,6.117]
[1755063097465,0.14881,4635.1,4635.0,9.475]
[1755063097668,0.4471,4635.8,4635.0,9.475]
[1755063097872,0.55,4635.7,4635.0,9.475]
[1755063099158,0.55,4635.9,4635.0,9.475]
[1755063099359,0.55,4635.9,4635.1,3.36]
[1755063099570,0.55,4635.7,4635.1,3.36]
[1755063100066,0.14881,4635.8,4635.1,3.36]
[1755063100275,0.4471,4636.1,4635.1,3.36]
[1755063100876,0.658,4635.2,4635.1,3.36]
[1755063101093,0.658,4635.2,4635.1,4.1354]
[1755063101592,0.108,4635.2,4635.1,4.1354]
[1755063101996,0.108,4635.2,4635.1,3.8142]
[1755063102490,0.108,4635.2,4635.1,4.1334]
[1755063104804,0.108,4635.2,4635.1,3.357]
[1755063105110,0.658,4635.2,4635.0,6.117]
[1755063105326,0.658,4635.2,4635.1,3.355]
[1755063105667,0.55,4635.1,4635.0,6.117]
[1755063105897,0.55,4635.1,4635.0,9.473]
[1755063107000,0.108,4635.2,4635.0,9.473]
[1755063107368,0.4471,4635.1,4635.0,6.117]
[1755063107697,0.9971,4635.1,4635.0,9.474]
[1755063107905,1.15671,4635.1,4635.0,9.474]
[1755063108120,1.64771,4635.1,4635.0,9.474]
[1755063108482,1.84624662,4635.1,4635.0,9.474]
[1755063108826,1.84624662,4635.1,4635.0,6.119]
[1755063109035,1.84624662,4635.1,4635.0,9.474]
[1755063109530,0.55,4635.0,4634.9,5.171]
[1755063109695,0.74946128,4635.0,4634.9,8.526]
[1755063109877,1.54513662,4635.0,4634.9,8.526]
[1755063111087,1.54511385,4635.0,4634.9,8.525]
[1755063111286,2.19213185,4635.0,4634.9,3.353]
[1755063111491,4.34968531,4635.0,4634.9,3.353]
[1755063111700,2.64995585,4635.0,4634.6,0.001]
[1755063112006,0.658,4634.7,4634.6,0.001]
[1755063112206,0.85657001,4634.7,4634.6,0.001]
[1755063112410,1.79467001,4634.7,4634.6,0.001]
[1755063112803,1.79467001,4634.7,4634.6,3.355]
[1755063113175,1.79467001,4634.7,4634.6,3.354]
[1755063113403,2.06693447,4634.7,4634.6,3.354]
[1755063114213,2.06693447,4634.7,4634.6,3.353]
[1755063115303,1.12883447,4634.7,4634.6,3.353]
[1755063115510,0.57883447,4634.7,4634.6,3.353]
[1755063115806,0.108,4634.7,4634.6,3.353]
[1755063116014,0.30697082,4634.7,4634.6,3.353]
[1755063116238,0.108,4634.7,4634.6,3.353]
[1755063117508,0.108,4634.7,4634.6,3.8092]
[1755063118040,0.108,4634.7,4634.6,3.353]
[1755063118041,0.658,4634.7,4634.6,3.353]
[1755063118208,0.658,4634.7,4634.6,0.001]
[1755063118406,0.658,4634.7,4634.6,3.352]
[1755063118609,1.1051,4634.7,4634.6,0.001]
[1755063118827,1.70661,4634.7,4634.6,3.351]
[1755063119228,1.5961,4634.7,4634.6,3.351]
[1755063120512,1.79506,4634.7,4634.6,0.001]
[1755063120707,1.79506,4634.7,4634.6,3.351]
[1755063121563,0.658,4634.7,4634.6,3.351]
[1755063122333,0.658,4634.7,4634.6,0.001]
[1755063122534,0.658,4634.7,4634.6,3.36]
[1755063122943,0.77108,4634.7,4634.6,3.36]
[1755063123118,0.658,4634.7,4634.6,3.36]
[1755063123314,0.658,4634.7,4634.6,0.001]
[1755063123315,1.1308,4634.7,4634.6,0.001]
[1755063123519,1.6232,4634.7,4634.6,3.36]
[1755063124313,1.6232,4634.7,4634.6,0.001]
[1755063124717,1.6232,4634.7,4634.6,3.361]
[1755063124914,1.78552,4634.7,4634.6,3.361]
[1755063125348,1.78552,4634.7,4634.6,3.36]
[1755063125919,1.29312,4634.7,4634.6,0.001]
[1755063126162,0.55,4634.6,4634.5,5.172]
[1755063126322,1.5152,4634.6,4634.5,8.53]
[1755063126521,1.693752,4634.6,4634.5,8.53]
[1755063126816,1.693752,4634.6,4634.1,0.001]
[1755063127035,0.728552,4634.6,4634.5,5.172]
[1755063127350,0.74889082,4635.3,4634.5,5.172]
[1755063127652,0.55,4635.1,4634.5,5.172]
[1755063127814,0.658,4634.6,4634.5,5.172]
[1755063128228,0.658,4634.6,4634.5,8.529]
[1755063129343,0.658,4634.6,4634.5,5.172]
[1755063129554,0.55,4634.5,4634.3,5.173]
[1755063129837,0.1304994,4634.6,4634.4,3.362]
[1755063130258,0.108,4634.5,4634.4,3.362]
[1755063130424,0.55,4634.4,4634.3,5.173]
[1755063130740,1.5152,4634.4,4634.3,5.173]
[1755063131524,1.5152,4634.4,4634.3,3.36]
[1755063131724,1.5152,4634.4,4634.1,0.001]
[1755063131958,0.658,4634.2,4634.1,0.001]
[1755063132325,1.1308,4634.2,4634.1,0.001]
[1755063132952,1.6232,4634.2,4634.1,0.001]
[1755063133355,1.6232,4634.2,4634.1,1.253]
[1755063133657,0.55,4634.0,4632.1,0.4616]
[1755063133860,0.55,4633.8,4632.1,0.4616]
[1755063134036,0.55,4633.2,4631.4,0.4616]
[1755063134238,0.55,4633.0,4631.4,0.4616]
[1755063134557,0.55,4632.8,4630.9,0.7808]
[1755063134761,0.55,4632.6,4630.9,0.3192]
[1755063134956,0.55,4632.6,4631.2,0.4616]
[1755063135258,0.62432,4632.7,4627.7,1.72868896]
[1755063135259,0.55,4632.4,4631.8,1.407]
[1755063135450,0.55,4632.2,4631.8,6.581]
[1755063135650,0.55,4632.0,4631.9,3.36]
[1755063136041,0.4728,4632.4,4631.9,3.36]
[1755063136235,0.55,4632.2,4631.9,3.36]
[1755063136457,0.55,4632.7,4631.9,3.36]
[1755063136839,0.4728,4634.1,4632.0,0.7808]
[1755063137040,0.68186808,4635.5,4631.8,5.174]
[1755063137041,0.4728,4633.7,4632.1,0.4616]
[1755063137260,0.4924,4633.6,4632.2,8.536]
[1755063137463,0.55,4633.4,4632.3,3.366]
[1755063137642,0.55,4633.4,4632.2,5.174]
[1755063137643,0.55,4633.2,4632.4,3.366]
[1755063137963,0.55,4633.0,4632.2,5.174]
[1755063138151,0.55,4633.2,4632.2,5.174]
[1755063138353,0.55,4632.8,4632.3,3.365]
[1755063138552,0.55,4633.2,4632.3,3.365]
[1755063139065,0.55,4633.4,4632.3,3.365]
[1755063139239,0.16455584,4633.8,4632.3,3.365]
[1755063139441,0.4616,4634.3,4632.4,0.7808]
[1755063139641,0.4616,4634.3,4632.5,0.7808]
[1755063139864,0.4728,4634.9,4632.6,0.7808]
[1755063140046,0.4728,4634.9,4632.3,3.365]
[1755063140047,0.4728,4634.9,4632.7,0.7808]
[1755063140233,0.4728,4635.7,4632.8,0.7808]
[1755063140540,0.4924,4635.0,4632.9,0.7808]
[1755063140742,0.4728,4635.7,4633.0,4.1508]
[1755063140941,0.4728,4635.5,4633.0,0.7808]
[1755063141143,0.9652,4635.5,4633.1,4.1508]
[1755063141354,0.61876,4635.4,4633.2,4.1508]
[1755063141542,1.0228,4635.3,4633.3,3.37]
[1755063141952,0.55,4635.1,4633.4,3.369]
[1755063142151,2.70745976,4635.1,4633.4,3.369]
[1755063142358,0.55,4634.9,4633.5,3.369]
[1755063142664,0.55,4634.7,4633.6,3.369]
[1755063142833,0.9652,4634.6,4633.6,3.369]
[1755063143035,0.55,4634.5,4633.6,3.369]
[1755063143265,0.55,4634.5,4632.2,5.174]
[1755063143470,0.55,4634.3,4632.3,0.7808]
[1755063143666,0.55,4634.1,4632.4,3.371]
[1755063143868,0.55,4633.9,4632.2,5.174]
[1755063144171,0.55,4632.3,4631.9,5.174]
[1755063144466,2.15840915,4633.1,4632.0,3.371]
[1755063144467,0.55,4632.1,4632.0,3.371]
[1755063144667,0.658,4632.1,4632.0,3.371]
[1755063144855,1.1308,4632.1,4632.0,3.371]
[1755063145048,2.38372,4632.1,4632.0,3.371]
[1755063145364,2.54284836,4632.1,4632.0,3.38]
[1755063145572,2.54284836,4632.1,4631.7,5.174]
[1755063145768,0.658,4631.8,4631.7,5.174]
[1755063146736,0.658,4631.8,4631.7,8.552]
[1755063146938,0.81576484,4631.8,4631.7,8.551]
[1755063147139,0.658,4631.8,4631.7,8.551]
[1755063147563,0.108,4631.8,4631.7,9.0126]
[1755063147842,0.108,4631.8,4631.7,5.4558]
[1755063148864,0.64725,4633.5,4631.7,5.4558]
[1755063149173,0.16541827,4633.5,4631.7,8.552]
[1755063149360,0.647106,4634.0,4631.7,8.552]
[1755063149685,0.108,4632.8,4632.1,0.108]
[1755063149879,0.108,4632.8,4632.2,0.4324]
[1755063150044,0.108,4632.8,4632.1,0.108]
[1755063150238,0.108,4632.8,4632.3,0.4324]
[1755063150539,0.002,4634.6,4632.4,3.8104]
[1755063150752,0.108,4633.0,4632.4,3.8104]
[1755063150972,0.108,4633.0,4632.5,0.4324]
[1755063151278,0.108,4633.0,4632.6,0.4324]
[1755063151580,0.108,4633.0,4632.7,0.4324]
[1755063151977,0.108,4633.0,4632.8,0.4324]
[1755063152352,0.108,4633.0,4632.9,0.2808]
[1755063152545,0.108,4633.0,4632.9,0.4324]
[1755063153291,0.108,4633.0,4632.3,0.2808]
[1755063153492,0.55,4633.6,4632.4,3.377]
[1755063153683,0.55,4633.3,4632.4,3.377]
[1755063153881,0.108,4632.5,4632.4,3.377]
[1755063154587,0.108,4632.5,4632.4,3.376]
[1755063156976,0.108,4632.5,4631.7,5.175]
[1755063157175,0.108,4632.5,4631.8,3.373]
[1755063157570,0.55,4632.9,4631.8,3.373]
[1755063157895,0.108,4631.9,4631.8,3.373]
[1755063158464,0.108,4631.9,4631.7,5.175]
[1755063158867,1.5652,4631.9,4631.8,3.372]
[1755063159079,1.72172,4631.9,4631.8,3.372]
[1755063159972,1.72172,4631.9,4631.7,5.175]
[1755063159973,0.55,4631.8,4631.7,5.175]
[1755063160173,0.55,4631.8,4631.7,8.548]
[1755063160566,0.9072,4631.8,4631.7,8.548]
[1755063160767,1.4572,4631.8,4631.7,8.548]
[1755063160972,1.6941107,4631.8,4631.7,8.548]
[1755063161203,0.55,4631.8,4631.7,8.547]
[1755063161699,1.005,4631.8,4631.7,8.547]
[1755063161906,1.4572,4631.8,4631.7,8.547]
[1755063162817,1.4572,4631.8,4631.7,5.175]
[1755063163111,1.4572,4631.8,4631.7,8.546]
[1755063163314,1.6941107,4631.8,4631.7,8.545]
[1755063163520,1.6941107,4631.8,4631.7,8.544]
[1755063163801,1.6941107,4631.8,4631.7,5.175]
[1755063164148,1.6941107,4631.8,4631.7,8.544]
[1755063165178,1.6941107,4631.8,4631.7,8.543]
[1755063165387,0.2369107,4631.8,4631.7,8.543]
[1755063165590,0.108,4631.8,4631.7,8.543]
[1755063166738,0.108,4631.8,4631.7,5.175]
[1755063166896,1.5652,4631.8,4631.7,8.547]
[1755063167220,0.658,4631.8,4631.7,8.547]
[1755063167386,1.5652,4631.8,4631.7,5.175]
[1755063167713,1.7864587,4631.8,4631.7,8.548]
[1755063167927,0.8792587,4631.8,4631.7,8.548]
[1755063168330,0.8792587,4631.8,4631.7,5.175]
[1755063168529,1.7864587,4631.8,4631.7,8.548]
[1755063168929,0.8792587,4631.8,4631.7,8.548]
[1755063169136,0.658,4631.8,4631.7,8.548]
[1755063169335,0.658,4631.8,4631.7,5.175]
[1755063169532,0.658,4631.8,4631.7,8.548]
[1755063171034,0.658,4631.8,4631.7,8.547]
[1755063172204,0.658,4631.8,4631.7,5.175]
[1755063172430,0.7885387,4631.8,4631.7,5.175]
[1755063172630,0.7885387,4631.8,4631.7,8.545]
[1755063173611,0.658,4631.8,4631.7,8.545]
[1755063173807,0.108,4631.8,4631.7,8.545]
[1755063174031,0.108,4631.8,4631.7,8.8258]
[1755063174408,0.4522,4632.9,4631.7,8.545]
[1755063174613,0.108,4631.8,4631.7,8.545]
[1755063175539,0.108,4631.8,4631.7,8.9774]
[1755063176067,0.108,4632.2,4631.7,8.9774]
[1755063176217,0.108,4632.2,4631.7,8.545]
[1755063176426,0.108,4632.2,4631.8,0.2808]
[1755063176621,0.108,4632.2,4631.9,3.373]
[1755063176822,0.108,4632.2,4632.0,0.2808]
[1755063177024,0.108,4632.2,4632.1,3.372]
[1755063177226,0.108,4632.2,4632.1,3.6528]
[1755063177420,0.002,4634.0,4632.1,3.8044]
[1755063177625,0.108,4632.8,4632.2,0.4324]
[1755063177821,0.108,4632.8,4632.1,3.48]
[1755063177822,0.108,4633.3,4632.6,0.108]
[1755063178034,0.457,4634.0,4632.7,3.372]
[1755063178232,0.108,4632.8,4632.7,3.372]
[1755063178844,0.108,4632.8,4632.7,3.374]
[1755063180519,0.108,4632.8,4631.8,0.2808]
[1755063180721,0.9215,4632.8,4631.9,3.374]
[1755063181557,0.55,4632.7,4631.9,3.374]
[1755063181759,0.29849143,4633.9,4631.9,3.374]
[1755063181760,0.9215,4633.5,4631.9,3.374]
[1755063181940,0.108,4632.0,4631.9,3.374]
[1755063183028,0.108,4632.0,4631.7,5.175]
[1755063183225,0.108,4632.0,4631.8,3.372]
[1755063184423,0.108,4632.0,4631.7,5.175]
[1755063184627,0.108,4632.0,4631.8,3.371]
[1755063185352,0.108,4632.0,4631.6,0.001]
[1755063185656,0.9215,4631.9,4631.7,8.545]
[1755063186070,1.5795,4631.8,4631.7,8.545]
[1755063186358,1.5795,4631.8,4631.7,5.175]
[1755063186524,1.5795,4631.8,4631.7,8.548]
[1755063187527,0.658,4631.8,4631.7,8.548]
[1755063187923,0.108,4631.8,4631.7,8.548]
[1755063189267,0.108,4631.8,4631.7,8.8288]
[1755063189962,0.9215,4633.5,4631.7,8.9804]
[1755063190162,0.108,4632.0,4631.7,8.9804]